bitfinex/quotes_BTCUSD_20240911
["timestamp","ask_amount","ask_price","bid_price","bid_amount"]
[1726051977038,0.29878281,56567.0,56566.0,0.1487]
[1726051977291,0.29278281,56567.0,56566.0,0.1487]
[1726051977513,0.12200181,56567.0,56566.0,0.1487]
[1726051977741,0.006,56567.0,56566.0,0.1487]
[1726051977958,0.006,56567.0,56566.0,0.56131353]
[1726051978180,0.000817,56568.0,56566.0,0.56131353]
[1726051978181,0.000817,56568.0,56566.0,0.52187959]
[1726051978406,0.000817,56568.0,56567.0,0.1443]
[1726051980081,0.001817,56568.0,56567.0,0.1443]
[1726051980388,0.001817,56568.0,56566.0,0.001634]
[1726051980389,0.883907,56567.0,56566.0,0.001634]
[1726051980628,0.54627595,56567.0,56566.0,0.003634]
[1726051980877,0.54627595,56567.0,56566.0,0.064134]
[1726051981324,0.89983895,56567.0,56566.0,0.064134]
[1726051981545,1.39050378,56567.0,56566.0,0.064134]
[1726051981774,1.35340195,56567.0,56566.0,0.064134]
[1726051981991,0.99983895,56567.0,56566.0,0.064134]
[1726051982699,0.64627595,56567.0,56566.0,0.064134]
[1726051982959,0.277781,56567.0,56566.0,0.064134]
[1726051983190,0.11593894,56567.0,56566.0,0.064134]
[1726051983416,0.19271994,56567.0,56566.0,0.064134]
[1726051983647,0.64628294,56567.0,56566.0,0.064134]
[1726051984091,0.65328294,56567.0,56566.0,0.064134]
[1726051984532,0.11593894,56567.0,56566.0,0.064134]
[1726051984753,0.02193894,56567.0,56566.0,0.064134]
[1726051984983,0.29871994,56567.0,56566.0,0.064134]
[1726051985241,0.29271994,56567.0,56566.0,0.064134]
[1726051985705,0.11593894,56567.0,56566.0,0.064134]
[1726051985922,0.01593894,56567.0,56566.0,0.064134]
[1726051986378,0.01593894,56567.0,56566.0,0.139934]
[1726051986630,0.000817,56568.0,56567.0,0.0629]
[1726051988012,0.01683255,56568.0,56567.0,0.0629]
[1726051988451,0.19361055,56568.0,56567.0,0.0629]
[1726051988685,0.02383255,56568.0,56567.0,0.0629]
[1726051988907,0.02378247,56568.0,56567.0,0.0629]
[1726051989129,0.20056047,56568.0,56567.0,0.0629]
[1726051993040,0.02378247,56568.0,56567.0,0.0629]
[1726051994479,0.55411647,56568.0,56567.0,0.0629]
[1726051994716,0.20056047,56568.0,56567.0,0.0629]
[1726051995459,0.90767247,56568.0,56567.0,0.0629]
[1726051995941,0.883907,56567.0,56566.0,0.001634]
[1726051996490,0.90008484,56567.0,56566.0,0.001634]
[1726051996700,0.90008481,56567.0,56566.0,0.001634]
[1726051997427,0.90608481,56567.0,56566.0,0.001634]
[1726051997891,2.03748678,56567.0,56566.0,0.001634]
[1726051998419,2.41167296,56567.0,56566.0,0.001634]
[1726051998421,2.37131083,56567.0,56566.0,0.001634]
[1726051998641,2.42444553,56567.0,56566.0,0.001634]
[1726051999330,2.41844553,56567.0,56566.0,0.001634]
[1726051999563,2.40226772,56567.0,56566.0,0.001634]
[1726051999790,2.44048853,56567.0,56566.0,0.001634]
[1726052000266,2.45420239,56567.0,56566.0,0.001634]
[1726052000492,2.39306769,56567.0,56566.0,0.001634]
[1726052000722,2.40706769,56567.0,56566.0,0.001634]
[1726052000942,2.46019061,56567.0,56566.0,0.001634]
[1726052001174,2.80875361,56567.0,56566.0,0.001634]
[1726052001386,2.82275361,56567.0,56566.0,0.001634]
[1726052001597,2.46919061,56567.0,56566.0,0.001634]
[1726052002486,2.46019061,56567.0,56566.0,0.001634]
[1726052002699,2.45719061,56567.0,56566.0,0.001634]
[1726052003161,2.4711374,56567.0,56566.0,0.001634]
[1726052003406,2.89641247,56567.0,56566.0,0.001634]
[1726052003644,2.98282737,56567.0,56566.0,0.001634]
[1726052003879,3.01082737,56567.0,56566.0,0.001634]
[1726052004582,2.99682737,56567.0,56566.0,0.001634]
[1726052004810,3.01082737,56567.0,56566.0,0.001634]
[1726052005275,2.95405055,56567.0,56566.0,0.001634]
[1726052005500,2.89941247,56567.0,56566.0,0.001634]
[1726052005734,2.87141247,56567.0,56566.0,0.001634]
[1726052005984,2.88541247,56567.0,56566.0,0.001634]
[1726052006254,2.87141247,56567.0,56566.0,0.001634]
[1726052006495,2.88541247,56567.0,56566.0,0.001634]
[1726052006735,2.90141247,56567.0,56566.0,0.001634]
[1726052006970,2.85941247,56567.0,56566.0,0.001634]
[1726052007475,2.87341247,56567.0,56566.0,0.001634]
[1726052007719,2.88741247,56567.0,56566.0,0.001634]
[1726052007958,0.97006262,56567.0,56566.0,0.146734]
[1726052008206,0.07187967,56567.0,56566.0,0.146734]
[1726052008673,0.07187967,56567.0,56566.0,0.55431359]
[1726052008674,0.0441676,56567.0,56566.0,0.55431359]
[1726052008893,0.0441676,56567.0,56566.0,0.6301859]
[1726052008894,0.028,56567.0,56566.0,0.6301859]
[1726052009101,0.028,56567.0,56566.0,0.52951835]
[1726052009327,0.000817,56568.0,56567.0,0.06]
[1726052009541,0.006,56567.0,56566.0,0.146734]
[1726052009767,0.014,56567.0,56566.0,0.146734]
[1726052010199,0.001,56567.0,56566.0,0.146734]
[1726052010418,0.000817,56568.0,56566.0,0.146734]
[1726052010630,0.000817,56568.0,56567.0,0.001]
[1726052011067,0.19380023,56568.0,56566.0,0.146734]
[1726052011293,0.19380023,56568.0,56566.0,0.066034]
[1726052011294,0.01620523,56567.0,56566.0,0.066034]
[1726052011508,0.01620523,56567.0,56566.0,0.001634]
[1726052011509,0.21736625,56567.0,56566.0,0.001634]
[1726052011739,0.57092925,56567.0,56566.0,0.001634]
[1726052011982,0.55154923,56567.0,56566.0,0.001634]
[1726052012198,0.02120523,56567.0,56566.0,0.001634]
[1726052012838,0.02120523,56567.0,56566.0,0.26677418]
[1726052013057,0.02120523,56567.0,56566.0,0.34607418]
[1726052013058,0.01,56567.0,56566.0,0.34607418]
[1726052013279,0.005,56567.0,56566.0,0.40438057]
[1726052013526,0.005,56567.0,56566.0,0.40084554]
[1726052013958,0.009817,56568.0,56566.0,0.34607418]
[1726052014174,0.000817,56568.0,56567.0,0.19894018]
[1726052015518,0.001817,56568.0,56567.0,0.19994018]
[1726052017074,0.001817,56568.0,56567.0,0.19894018]
[1726052017263,0.02951869,56568.0,56567.0,0.20194018]
[1726052018477,0.02951869,56568.0,56567.0,0.003]
[1726052018712,0.03051869,56568.0,56567.0,0.003]
[1726052019217,0.002817,56568.0,56567.0,0.003]
[1726052019431,0.001817,56568.0,56567.0,0.003]
[1726052019864,0.002817,56568.0,56567.0,0.003]
[1726052020104,0.276757,56575.0,56567.0,0.003]
[1726052020105,0.160578,56574.0,56567.0,0.003]
[1726052020366,0.001,56568.0,56567.0,0.003]
[1726052020553,0.001,56568.0,56566.0,0.067834]
[1726052020996,0.001,56568.0,56567.0,0.002]
[1726052021215,0.001,56568.0,56567.0,0.22821683]
[1726052021467,0.001,56568.0,56567.0,0.02457742]
[1726052021691,0.176754,56576.0,56566.0,0.067834]
[1726052021907,0.008,56568.0,56566.0,0.067834]
[1726052022143,0.009,56568.0,56566.0,0.067834]
[1726052022376,0.001,56568.0,56566.0,0.067834]
[1726052022817,0.276757,56575.0,56566.0,0.067834]
[1726052023058,0.276757,56575.0,56567.0,0.002]
[1726052023059,0.01564065,56574.0,56567.0,0.002]
[1726052023272,0.001,56568.0,56567.0,0.002]
[1726052024577,0.001,56568.0,56566.0,0.067834]
[1726052024794,0.001,56568.0,56566.0,0.09678134]
[1726052025019,0.027703,56576.0,56566.0,0.09678134]
[1726052025272,0.01561766,56575.0,56567.0,0.20163941]
[1726052025489,0.01561766,56574.0,56567.0,0.20163941]
[1726052025764,0.01561766,56573.0,56567.0,0.2510755]
[1726052025973,0.001,56568.0,56567.0,0.2510755]
[1726052026182,0.000817,56574.0,56567.0,0.2510755]
[1726052026403,0.000817,56574.0,56568.0,0.0523797]
[1726052026847,0.02770243,56573.0,56570.0,0.079]
[1726052027083,0.02770243,56573.0,56571.0,0.20163941]
[1726052028538,0.02770243,56573.0,56572.0,0.00353482]
[1726052028777,0.02770243,56573.0,56571.0,0.20163941]
[1726052029006,0.03170243,56573.0,56571.0,0.20163941]
[1726052029473,0.02770243,56573.0,56570.0,0.079]
[1726052029706,0.02770243,56573.0,56572.0,0.003]
[1726052030180,0.000817,56574.0,56572.0,0.003]
[1726052030440,0.001,56573.0,56572.0,0.003]
[1726052030676,0.000817,56574.0,56572.0,0.003]
[1726052031396,0.000817,56574.0,56570.0,0.079]
[1726052031397,0.001,56573.0,56570.0,0.079]
[1726052031634,0.001,56573.0,56571.0,0.003]
[1726052032160,0.001,56573.0,56570.0,0.079]
[1726052032391,0.001,56573.0,56572.0,0.002]
[1726052032860,0.001,56573.0,56566.0,0.34772152]
[1726052033095,0.001,56573.0,56567.0,0.19894018]
[1726052033332,0.001,56573.0,56571.0,0.003]
[1726052033568,0.000817,56574.0,56571.0,0.003]
[1726052033815,0.001817,56574.0,56571.0,0.003]
[1726052034050,0.000817,56574.0,56571.0,0.003]
[1726052034514,0.001,56573.0,56567.0,0.19894018]
[1726052034752,0.000817,56574.0,56567.0,0.19894018]
[1726052034982,0.001817,56574.0,56567.0,0.19894018]
[1726052035455,0.01559728,56573.0,56569.0,0.002]
[1726052035695,0.002817,56574.0,56573.0,0.20163941]
[1726052035927,0.002817,56574.0,56573.0,0.20517414]
[1726052036173,0.001817,56574.0,56573.0,0.20517414]
[1726052036406,0.001817,56574.0,56573.0,0.55911102]
[1726052036407,0.000817,56574.0,56573.0,0.55911102]
[1726052036643,0.002817,56574.0,56573.0,0.58211102]
[1726052037394,0.003817,56574.0,56573.0,0.58211102]
[1726052038106,0.002817,56574.0,56573.0,0.58211102]
[1726052038332,0.01936484,56574.0,56573.0,0.58211102]
[1726052039318,0.003817,56574.0,56573.0,0.58211102]
[1726052040516,0.003817,56574.0,56573.0,0.53777959]
[1726052042439,0.0192517,56574.0,56573.0,0.53777959]
[1726052042908,0.003817,56574.0,56573.0,0.53777959]
[1726052043652,0.003817,56574.0,56573.0,0.56977959]
[1726052044579,0.000817,56574.0,56573.0,0.56977959]
[1726052044801,0.000817,56574.0,56573.0,0.57077959]
[1726052045012,0.000817,56574.0,56573.0,0.63904317]
[1726052045704,0.000817,56574.0,56573.0,0.63704317]
[1726052045924,0.001817,56574.0,56573.0,0.63804317]
[1726052046867,0.000817,56574.0,56573.0,0.63804317]
[1726052047105,0.001817,56574.0,56573.0,0.64904317]
[1726052047565,0.000817,56574.0,56573.0,0.63804317]
[1726052047784,0.001817,56574.0,56573.0,0.64204317]
[1726052048003,0.002817,56574.0,56573.0,0.65304317]
[1726052048223,0.001817,56574.0,56573.0,0.64904317]
[1726052048452,0.002817,56574.0,56573.0,0.65304317]
[1726052050482,0.002817,56574.0,56573.0,0.7058851]
[1726052050689,0.002817,56574.0,56573.0,0.65304317]
[1726052050925,0.1,56590.0,56577.0,0.002]
[1726052051143,0.0783544,56596.0,56588.0,0.20163941]
[1726052051367,0.1413544,56596.0,56588.0,0.20163941]
[1726052051585,0.0024544,56596.0,56588.0,0.20163941]
[1726052052023,0.0024544,56596.0,56589.0,0.00353365]
[1726052052487,0.006,56590.0,56589.0,0.00353365]
[1726052052924,0.006,56590.0,56588.0,0.20163941]
[1726052053152,0.006,56590.0,56589.0,0.02016394]
[1726052053625,0.003818,56593.0,56584.0,0.26573941]
[1726052053879,0.003818,56593.0,56589.0,0.001]
[1726052054117,0.012818,56593.0,56589.0,0.001]
[1726052054548,0.003818,56593.0,56589.0,0.001]
[1726052054773,0.02851127,56593.0,56585.0,0.19894018]
[1726052054974,0.006,56590.0,56589.0,0.001]
[1726052055408,0.02851127,56593.0,56585.0,0.19894018]
[1726052056077,0.03151127,56593.0,56585.0,0.19894018]
[1726052056547,0.02851127,56593.0,56588.0,0.20163941]
[1726052056985,0.04051127,56593.0,56588.0,0.20163941]
[1726052057419,0.03151127,56593.0,56588.0,0.20163941]
[1726052057870,0.03751127,56593.0,56588.0,0.20163941]
[1726052058097,0.04051127,56593.0,56588.0,0.25360002]
[1726052058877,0.04051127,56593.0,56589.0,0.023]
[1726052059862,0.03751127,56593.0,56589.0,0.023]
[1726052060067,0.02851127,56593.0,56589.0,0.023]
[1726052060290,0.012818,56593.0,56590.0,0.04525402]
[1726052060523,0.0154032,56592.0,56590.0,0.04525402]
[1726052060752,0.0154032,56591.0,56590.0,0.04525402]
[1726052060980,0.0154032,56592.0,56590.0,0.04525402]
[1726052061214,0.0154032,56591.0,56590.0,0.04525402]
[1726052061463,0.0154032,56591.0,56589.0,0.023]
[1726052061672,0.0154032,56590.0,56589.0,0.023]
[1726052062291,0.002,56592.0,56589.0,0.023]
[1726052062936,0.000818,56593.0,56589.0,0.023]
[1726052063367,0.000818,56593.0,56589.0,0.024]
[1726052063575,0.000818,56593.0,56589.0,0.06415796]
[1726052064075,0.002,56592.0,56589.0,0.06415796]
[1726052064296,0.008,56592.0,56589.0,0.06315796]
[1726052064712,0.000818,56593.0,56589.0,0.023]
[1726052065149,0.012818,56593.0,56589.0,0.023]
[1726052065373,0.0154256,56592.0,56589.0,0.023]
[1726052065591,0.0154256,56591.0,56589.0,0.023]
[1726052065824,0.012818,56593.0,56589.0,0.023]
[1726052065825,0.0154256,56590.0,56589.0,0.023]
[1726052066054,0.0154256,56590.0,56589.0,0.22463941]
[1726052066530,0.002,56592.0,56589.0,0.22463941]
[1726052066959,0.009818,56593.0,56589.0,0.22463941]
[1726052067182,0.009818,56593.0,56589.0,0.22563941]
[1726052067392,0.000818,56593.0,56589.0,0.22563941]
[1726052067649,0.008,56592.0,56589.0,0.22563941]
[1726052067841,0.008,56592.0,56589.0,0.23163941]
[1726052067842,0.009,56592.0,56589.0,0.23163941]
[1726052068261,0.000818,56593.0,56589.0,0.22663941]
[1726052068472,0.000818,56593.0,56589.0,0.22863941]
[1726052068692,0.000818,56593.0,56590.0,0.21639814]
[1726052068912,0.000818,56593.0,56592.0,0.002]
[1726052069144,0.000818,56593.0,56592.0,0.0055334]
[1726052069564,0.000818,56593.0,56592.0,0.17947358]
[1726052069787,0.000818,56593.0,56592.0,0.20247358]
[1726052069788,0.001818,56593.0,56592.0,0.20247358]
[1726052070000,0.000818,56593.0,56592.0,0.44009409]
[1726052070227,0.0024544,56596.0,56595.0,0.092]
[1726052070470,0.0024544,56596.0,56595.0,0.8455534]
[1726052070686,0.0024544,56596.0,56595.0,1.09564732]
[1726052070903,0.0024544,56596.0,56595.0,1.17134732]
[1726052071129,0.0023544,56596.0,56595.0,1.03919821]
[1726052072014,0.0023544,56596.0,56595.0,1.04519821]
[1726052072015,0.0033544,56596.0,56595.0,1.04519821]
[1726052072453,0.0023544,56596.0,56595.0,1.03919821]
[1726052072904,0.0033544,56596.0,56595.0,1.04519821]
[1726052073133,0.0043544,56596.0,56595.0,1.05119821]
[1726052073352,0.0024544,56607.0,56606.0,0.2289]
[1726052073597,0.0024544,56607.0,56606.0,0.70888749]
[1726052073839,0.0024544,56607.0,56606.0,0.73532604]
[1726052074324,0.0024544,56607.0,56606.0,0.73732604]
[1726052074546,0.0024544,56607.0,56606.0,0.65810174]
[1726052074783,0.0024544,56607.0,56606.0,0.65456959]
[1726052075020,0.0024544,56607.0,56606.0,0.70732586]
[1726052075503,0.0044544,56607.0,56606.0,0.71932586]
[1726052075735,0.0044544,56607.0,56606.0,0.66656959]
[1726052076411,0.0044544,56607.0,56606.0,0.66456959]
[1726052076617,0.0044544,56607.0,56606.0,0.58636959]
[1726052077538,0.0044544,56607.0,56606.0,0.49636959]
[1726052077761,0.0044544,56607.0,56606.0,0.52636959]
[1726052078222,0.0044544,56607.0,56606.0,0.52836959]
[1726052080041,0.0043544,56607.0,56606.0,0.52836959]
[1726052080462,0.0043544,56607.0,56606.0,0.52636959]
[1726052082011,0.0043544,56607.0,56606.0,0.46566959]
[1726052082229,0.0043544,56607.0,56606.0,0.43566959]
[1726052083994,0.0043544,56607.0,56606.0,0.46566959]
[1726052084212,0.0043544,56607.0,56606.0,0.43566959]
[1726052085356,0.0043544,56607.0,56606.0,0.41257959]
[1726052086053,0.0043544,56607.0,56606.0,0.44257959]
[1726052086545,0.0043544,56607.0,56606.0,0.44457959]
[1726052086779,0.000818,56610.0,56607.0,0.03]
[1726052087065,0.000818,56610.0,56608.0,0.19894018]
[1726052087283,0.000818,56610.0,56609.0,0.05902796]
[1726052087534,0.000818,56610.0,56609.0,0.25796814]
[1726052088482,0.001818,56610.0,56609.0,0.25796814]
[1726052088955,0.002818,56610.0,56609.0,0.26496814]
[1726052090103,0.002818,56610.0,56609.0,0.26896814]
[1726052094501,0.002818,56610.0,56609.0,0.20994018]
[1726052094739,0.002818,56610.0,56609.0,0.011]
[1726052094740,0.320065,56610.0,56609.0,0.011]
[1726052095223,0.3355337,56610.0,56609.0,0.011]
[1726052095916,0.320065,56610.0,56609.0,0.011]
[1726052096136,0.33553667,56610.0,56609.0,0.011]
[1726052096903,0.15888967,56610.0,56609.0,0.011]
[1726052099448,0.15886627,56610.0,56609.0,0.03296394]
[1726052101617,0.15886627,56610.0,56609.0,0.011]
[1726052102863,0.01826627,56610.0,56609.0,0.4151121]
[1726052103079,0.002818,56610.0,56609.0,0.41157959]
[1726052103322,0.002818,56610.0,56609.0,0.41357959]
[1726052103597,0.002818,56610.0,56609.0,0.41157959]
[1726052103837,0.002818,56610.0,56609.0,0.4765378]
[1726052104082,0.0024544,56618.0,56616.0,0.20163941]
[1726052104341,0.0024544,56618.0,56617.0,0.19894018]
[1726052104590,0.01791093,56618.0,56617.0,0.19894018]
[1726052105071,0.0179135,56618.0,56617.0,0.19894018]
[1726052105525,0.0179135,56618.0,56617.0,0.24099814]
[1726052107075,0.0229135,56618.0,56617.0,0.24099814]
[1726052107295,0.0074544,56618.0,56617.0,0.24453005]
[1726052107529,0.0024544,56618.0,56617.0,0.24453005]
[1726052108008,0.0074544,56618.0,56617.0,0.24453005]
[1726052108453,0.0024544,56618.0,56617.0,0.24253005]
[1726052108682,0.0034544,56618.0,56617.0,0.25553005]
[1726052108891,0.0044544,56618.0,56617.0,0.25553005]
[1726052111758,0.0044544,56618.0,56617.0,0.30830054]
[1726052111966,0.0044544,56618.0,56617.0,0.31030054]
[1726052112189,0.0044544,56618.0,56617.0,0.30676863]
[1726052112676,0.0052714,56618.0,56617.0,0.33315388]
[1726052113376,0.0052714,56618.0,56617.0,0.25399814]
[1726052113614,0.0052714,56618.0,56617.0,0.54651394]
[1726052114322,0.0052714,56618.0,56617.0,0.54650611]
[1726052115198,0.0052714,56618.0,56617.0,0.54450611]
[1726052115731,0.0052714,56618.0,56617.0,0.65035042]
[1726052115825,0.0052714,56618.0,56617.0,0.61029246]
[1726052116530,0.0052714,56618.0,56617.0,0.50444815]
[1726052116731,0.0052714,56618.0,56617.0,0.61029246]
[1726052119235,0.0052714,56618.0,56617.0,0.61087989]
[1726052119462,0.0052714,56618.0,56617.0,0.7143698]
[1726052124379,0.0052714,56618.0,56617.0,0.71434347]
[1726052124610,0.0052714,56618.0,56617.0,0.60845239]
[1726052124850,0.0052714,56618.0,56617.0,0.71434347]
[1726052125605,0.0052714,56618.0,56617.0,0.70455239]
[1726052126079,0.0284958,56625.0,56622.0,0.002]
[1726052126318,0.000818,56625.0,56624.0,0.28099751]
[1726052126564,0.000818,56625.0,56624.0,0.77295715]
[1726052126807,0.000818,56625.0,56624.0,0.79942469]
[1726052127035,0.000818,56625.0,56624.0,0.89279501]
[1726052127770,0.000818,56625.0,56624.0,1.02147221]
[1726052127771,0.002818,56625.0,56624.0,1.02147221]
[1726052128254,0.01918178,56628.0,56624.0,1.02147221]
[1726052128255,0.00159658,56628.0,56627.0,0.09]
[1726052128520,0.00159658,56628.0,56627.0,0.65339314]
[1726052128744,0.00159658,56628.0,56627.0,0.78164665]
[1726052129471,0.00159658,56628.0,56627.0,0.78360535]
[1726052130669,0.00159658,56628.0,56627.0,0.79060535]
[1726052130670,0.00259658,56628.0,56627.0,0.79060535]
[1726052131154,0.00159658,56628.0,56627.0,0.79460535]
[1726052131389,0.00159658,56628.0,56627.0,0.78360535]
[1726052131613,0.00259658,56628.0,56627.0,0.79260535]
[1726052131884,0.00259658,56628.0,56627.0,0.95092521]
[1726052132102,0.00259658,56628.0,56627.0,0.96492521]
[1726052132329,0.00259658,56628.0,56627.0,0.80660535]
[1726052134447,0.00259658,56628.0,56627.0,0.80727138]
[1726052137671,0.00259658,56628.0,56627.0,0.82727138]
[1726052137926,0.00341358,56628.0,56627.0,0.82727138]
[1726052138382,0.00341358,56628.0,56627.0,0.95908696]
[1726052139607,0.00341358,56628.0,56627.0,0.95892802]
[1726052140090,0.00341358,56628.0,56627.0,0.95539736]
[1726052140338,0.00341358,56628.0,56627.0,1.07625624]
[1726052141021,0.00341358,56628.0,56627.0,0.82359088]
[1726052141231,0.0644,56636.0,56635.0,0.12085888]
[1726052141582,0.0644,56636.0,56635.0,0.31979906]
[1726052141817,0.0644,56636.0,56635.0,0.19894018]
[1726052142080,0.0824,56638.0,56628.0,0.18227949]
[1726052142081,0.240976,56633.0,56628.0,0.10319974]
[1726052142332,0.0824,56632.0,56628.0,0.12085888]
[1726052143516,0.0824,56632.0,56628.0,0.12385888]
[1726052144248,0.0824,56632.0,56628.0,0.003]
[1726052144939,0.0824,56632.0,56626.0,0.20149985]
[1726052145201,0.0824,56632.0,56628.0,0.008]
[1726052145445,0.0824,56632.0,56627.0,0.03632994]
[1726052145696,0.0824,56632.0,56631.0,0.20149985]
[1726052145936,0.0024544,56652.0,56631.0,0.49044003]
[1726052145937,0.063,56638.0,56631.0,0.49044003]
[1726052146179,0.3554874,56652.0,56636.0,0.20149985]
[1726052146180,0.0654544,56641.0,56636.0,0.20149985]
[1726052146388,0.0654544,56641.0,56636.0,0.37744003]
[1726052146606,0.0654544,56641.0,56636.0,0.40044003]
[1726052147268,0.0654544,56641.0,56636.0,0.40244003]
[1726052147756,0.001817,56637.0,56636.0,0.40944003]
[1726052147980,0.001817,56637.0,56636.0,0.47883937]
[1726052148603,0.001817,56637.0,56636.0,0.47683937]
[1726052149549,0.000817,56637.0,56636.0,0.48383937]
[1726052149999,0.001817,56637.0,56636.0,0.47783937]
[1726052150214,0.001817,56637.0,56636.0,0.49183937]
[1726052159811,0.001817,56637.0,56636.0,0.29033952]
[1726052161833,0.001817,56637.0,56636.0,0.22094018]
[1726052162035,0.151517,56637.0,56636.0,0.22094018]
[1726052162903,0.151517,56637.0,56636.0,0.022]
[1726052163326,0.151517,56637.0,56636.0,0.39944003]
[1726052163738,0.146517,56637.0,56636.0,0.39944003]
[1726052163947,0.146517,56637.0,56636.0,0.43938403]
[1726052164397,0.146517,56637.0,56636.0,0.46238403]
[1726052164818,0.0024544,56641.0,56636.0,0.46238403]
[1726052165049,0.0024544,56641.0,56640.0,0.20149985]
[1726052165286,0.0024544,56641.0,56640.0,0.40044003]
[1726052165495,0.0024544,56641.0,56640.0,0.44897843]
[1726052166130,0.0034544,56641.0,56640.0,0.44897843]
[1726052166342,0.0034544,56641.0,56640.0,0.46197843]
[1726052166820,0.0024544,56641.0,56640.0,0.46197843]
[1726052167635,0.0024544,56641.0,56640.0,0.46397843]
[1726052167876,0.0024544,56641.0,56640.0,0.46197843]
[1726052169583,0.0034544,56641.0,56640.0,0.47097843]
[1726052171951,0.0034544,56641.0,56640.0,0.98018646]
[1726052172409,0.0034544,56641.0,56640.0,0.84797779]
[1726052173128,0.0034544,56641.0,56640.0,0.76797779]
[1726052173364,0.0034544,56641.0,56640.0,0.51793954]
[1726052173587,0.0695544,56641.0,56640.0,0.51793954]
[1726052174476,0.1519544,56641.0,56640.0,0.51793954]
[1726052176484,0.1527714,56641.0,56640.0,0.51793954]
[1726052176934,0.1527714,56641.0,56640.0,0.62385343]
[1726052177422,0.1527714,56641.0,56640.0,0.51793954]
[1726052177660,0.1527714,56641.0,56640.0,0.62385343]
[1726052178141,0.1527714,56641.0,56640.0,0.6503319]
[1726052179319,0.1527714,56641.0,56640.0,0.51793954]
[1726052182360,0.1527714,56641.0,56640.0,0.60711712]
[1726052182812,0.1527714,56641.0,56640.0,0.73950948]
[1726052184813,0.1527714,56641.0,56640.0,0.60711712]
[1726052185521,0.1527714,56641.0,56640.0,0.51793954]
[1726052187282,0.1527714,56641.0,56640.0,0.6503319]
[1726052187734,0.0042714,56641.0,56640.0,0.77119214]
[1726052187951,0.0042714,56641.0,56640.0,0.77175536]
[1726052189288,0.0042714,56641.0,56640.0,0.63937526]
[1726052189516,0.0042714,56641.0,56640.0,0.7231928]
[1726052190473,0.0042714,56641.0,56640.0,0.7886928]
[1726052190703,0.0042714,56641.0,56640.0,1.29529758]
[1726052190955,0.02253013,56645.0,56644.0,0.12086024]
[1726052191180,0.02253013,56645.0,56644.0,1.36400854]
[1726052191395,0.02253013,56645.0,56644.0,1.28731564]
[1726052192537,0.02253013,56645.0,56644.0,0.86871086]
[1726052192748,0.02253013,56645.0,56644.0,1.29931564]
[1726052192971,0.02253013,56645.0,56644.0,1.29585135]
[1726052193191,0.02353013,56645.0,56644.0,1.30985135]
[1726052193409,0.02353013,56645.0,56644.0,0.89526741]
[1726052194078,0.02353013,56645.0,56644.0,1.30985135]
[1726052194311,0.02353013,56645.0,56644.0,0.89526741]
[1726052194575,0.02353013,56645.0,56644.0,0.82976741]
[1726052194816,0.02353013,56645.0,56644.0,0.60307157]
[1726052195037,0.02353013,56645.0,56644.0,0.8826198]
[1726052195298,0.02253013,56645.0,56644.0,0.8546198]
[1726052195528,0.02253013,56645.0,56644.0,0.8456198]
[1726052195529,0.02353013,56645.0,56644.0,0.8456198]
[1726052195763,0.02353013,56645.0,56644.0,0.8596198]
[1726052195990,0.02353013,56645.0,56644.0,0.7656198]
[1726052196231,0.02353013,56645.0,56644.0,0.50007157]
[1726052196682,0.02253013,56645.0,56644.0,0.68227554]
[1726052196931,0.02253013,56645.0,56644.0,0.63893181]
[1726052197157,0.02353013,56645.0,56644.0,0.50407157]
[1726052197352,0.02353013,56645.0,56644.0,0.43736539]
[1726052197353,0.08903013,56645.0,56644.0,0.43736539]
[1726052197616,0.08903013,56645.0,56644.0,0.06190685]
[1726052198064,0.08903013,56645.0,56644.0,0.009]
[1726052198287,0.08803013,56645.0,56643.0,0.05290685]
[1726052198542,0.08803013,56645.0,56643.0,0.07935058]
[1726052198755,0.08803013,56645.0,56644.0,0.015]
[1726052198995,0.08803013,56645.0,56644.0,0.005]
[1726052199215,0.08803013,56645.0,56643.0,0.07935058]
[1726052199432,0.08803013,56645.0,56644.0,0.006]
[1726052200128,0.08803013,56645.0,56643.0,0.07935058]
[1726052200600,0.08803013,56645.0,56644.0,0.05290981]
[1726052201563,0.34106813,56645.0,56644.0,0.05290981]
[1726052201816,0.34106813,56645.0,56643.0,0.05890981]
[1726052202093,0.34188513,56645.0,56643.0,0.05890981]
[1726052202319,0.34188513,56645.0,56643.0,0.05290981]
[1726052202545,0.16734713,56645.0,56644.0,0.006]
[1726052202966,0.16534713,56645.0,56642.0,0.05290981]
[1726052203177,0.17334713,56645.0,56643.0,0.001]
[1726052203442,0.17334713,56645.0,56643.0,0.05390981]
[1726052203660,0.240141,56644.0,56643.0,0.001]
[1726052204614,0.0636,56644.0,56643.0,0.001]
[1726052205072,0.0636,56644.0,56643.0,0.05290981]
[1726052205772,0.240141,56644.0,56642.0,0.05290981]
[1726052206468,0.0636,56644.0,56642.0,0.05290981]
[1726052207152,0.0636,56644.0,56643.0,0.05290981]
[1726052208101,0.0706,56644.0,56643.0,0.001]
[1726052208351,0.0706,56644.0,56643.0,0.05393867]
[1726052213156,0.0706,56644.0,56643.0,0.05394352]
[1726052217817,0.0706,56644.0,56643.0,0.001]
[1726052228248,0.071417,56644.0,56643.0,0.001]
[1726052229635,0.007817,56644.0,56643.0,0.001]
[1726052231545,0.007817,56644.0,56643.0,0.12186716]
[1726052231794,0.007817,56644.0,56643.0,0.001]
[1726052232039,0.007817,56644.0,56643.0,0.12186716]
[1726052233244,0.007817,56644.0,56643.0,0.001]
[1726052235575,0.007817,56644.0,56643.0,0.05394505]
[1726052235848,0.007817,56644.0,56643.0,0.001]
[1726052236084,0.007817,56644.0,56643.0,0.05394505]
[1726052237256,0.007817,56644.0,56643.0,0.0539473]
[1726052238398,0.007817,56644.0,56643.0,0.08042095]
[1726052239299,0.007817,56644.0,56643.0,0.37862693]
[1726052240228,0.007817,56644.0,56643.0,0.08042095]
[1726052240471,0.007817,56644.0,56643.0,0.37877698]
[1726052241340,0.007817,56644.0,56643.0,0.40525064]
[1726052242103,0.007817,56644.0,56643.0,0.58004309]
[1726052242367,0.007817,56644.0,56643.0,0.47414848]
[1726052242598,0.007817,56644.0,56643.0,0.47451607]
[1726052243287,0.007817,56644.0,56643.0,0.60703608]
[1726052245167,0.007817,56644.0,56643.0,0.67293608]
[1726052246285,0.007817,56644.0,56643.0,0.54041607]